bitfinex/quotes_ETHUSD_20220215
["timestamp","ask_amount","ask_price","bid_price","bid_amount"]
[1644941029534,0.94126896,3122.4,3122.3,0.94034256]
[1644941029734,1.54126896,3122.4,3122.3,0.94034256]
[1644941029934,1.54126896,3122.4,3122.0,1.60105]
[1644941030135,1.56088044,3122.3,3122.0,1.60105]
[1644941030537,0.80059,3122.2,3122.0,1.60105]
[1644941031138,0.80059,3122.2,3122.0,2.53179266]
[1644941032884,3.20242,3122.2,3122.0,2.53179266]
[1644941037939,3.20242,3122.2,3122.1,0.86201931]
[1644941038140,3.20242,3122.2,3122.1,1.86201931]
[1644941038540,2.34386813,3122.2,3122.1,1.86201931]
[1644941038838,2.34386813,3122.2,3122.1,2.32401931]
[1644941039489,8.00471,3124.1,3122.3,0.86201931]
[1644941039696,4.50779588,3124.8,3122.3,0.86201931]
[1644941039697,0.5,3124.8,3123.5,0.01225777]
[1644941039888,3.2548,3125.1,3123.6,1.32401931]
[1644941040090,1.60006,3124.4,3123.7,0.86201931]
[1644941040286,1.60006,3124.4,3124.2,0.86201931]
[1644941040287,0.80004,3124.4,3124.2,0.86201931]
[1644941040489,1.17190223,3125.3,3124.4,0.86201931]
[1644941040686,0.00971085,3124.7,3124.4,1.32401931]
[1644941040886,0.00971085,3124.7,3124.6,1.66191931]
[1644941041086,0.00971085,3124.7,3124.6,2.66191931]
[1644941041689,0.79987,3124.8,3124.6,3.12391931]
[1644941041890,0.79987,3124.8,3124.6,3.03519451]
[1644941042087,0.79987,3124.8,3124.7,1.86201931]
[1644941042386,2.39967,3124.8,3124.7,2.32401931]
[1644941043937,2.39967,3124.8,3124.7,5.6944598]
[1644941044442,1.0,3125.2,3124.7,5.6944598]
[1644941044443,1.79967,3125.2,3124.7,6.6944598]
[1644941044638,1.0,3125.2,3124.9,0.86201931]
[1644941044837,1.0,3125.2,3125.1,0.86201931]
[1644941045038,1.0,3125.2,3125.1,5.75228051]
[1644941045238,1.0,3125.2,3125.1,2.32401931]
[1644941045438,1.0,3125.2,3125.1,3.32401931]
[1644941045640,1.0,3125.2,3125.1,5.72296931]
[1644941046039,1.0,3125.2,3125.1,9.0981993]
[1644941046240,1.0,3125.2,3125.1,5.72296931]
[1644941046440,1.0,3125.2,3125.1,9.08094803]
[1644941047683,1.0,3125.2,3125.1,5.72296931]
[1644941047883,1.0,3125.2,3125.1,9.14604324]
[1644941048083,1.0,3125.2,3125.1,5.72296931]
[1644941049197,1.92764706,3125.5,3125.1,5.72296931]
[1644941049399,4.5134516,3126.4,3125.4,6.85]
[1644941049600,1.1469,3127.2,3125.5,9.36201931]
[1644941049601,0.75780696,3126.5,3125.5,9.36201931]
[1644941049786,2.62457929,3127.2,3126.2,1.0]
[1644941049988,2.62457929,3127.2,3126.3,4.36201931]
[1644941049989,0.74753543,3127.2,3126.3,4.36201931]
[1644941050188,0.25,3127.9,3127.0,0.86201931]
[1644941050387,0.5,3128.2,3127.2,0.86201931]
[1644941050649,0.5,3128.2,3127.4,0.86201931]
[1644941050846,0.79904,3128.2,3127.6,0.86201931]
[1644941051051,0.79904,3128.2,3127.7,0.462]
[1644941051345,0.79904,3128.2,3127.8,0.86201931]
[1644941051545,0.12818738,3127.7,3127.6,0.79625836]
[1644941051744,0.12818738,3127.7,3127.6,1.25825836]
[1644941051946,0.12818738,3127.7,3127.6,2.25825836]
[1644941052146,0.12818738,3127.7,3127.6,2.05732836]
[1644941052344,0.12818738,3127.7,3127.6,3.05732836]
[1644941053146,0.12818738,3127.7,3127.6,2.05732836]
[1644941053346,0.12818738,3127.7,3127.6,3.05732836]
[1644941053548,0.12818738,3127.7,3127.6,2.05732836]
[1644941053747,0.12818738,3127.7,3127.6,3.05732836]
[1644941054148,0.12818738,3127.7,3127.6,2.05732836]
[1644941054386,0.12818738,3127.7,3127.6,1.93667559]
[1644941054587,0.12818738,3127.7,3127.6,0.93667559]
[1644941054791,0.12818738,3127.7,3127.6,4.46644506]
[1644941054988,10.5457,3129.1,3127.7,6.85]
[1644941055187,10.5457,3129.1,3128.0,0.79893]
[1644941055188,0.00958949,3128.3,3128.0,0.79893]
[1644941056103,0.79894,3128.3,3128.0,0.79893]
[1644941056488,0.80133773,3128.3,3128.0,0.79893]
[1644941057392,0.79894,3128.3,3128.0,0.79893]
[1644941057588,0.79894,3128.3,3128.1,3.47937182]
[1644941057589,0.80133773,3128.3,3128.1,3.47937182]
[1644941057795,0.00958949,3128.8,3128.1,3.47937182]
[1644941057796,0.00958949,3128.8,3128.2,7.85]
[1644941057993,0.00958949,3128.8,3128.3,5.37558726]
[1644941058244,0.6563486,3129.5,3128.7,1.0]
[1644941058444,0.6563486,3129.5,3128.8,5.50078249]
[1644941058640,0.6563486,3129.5,3129.1,1.0]
[1644941058841,2.2537286,3129.5,3129.1,1.0]
[1644941059142,0.79867,3129.4,3129.2,0.79867]
[1644941060048,1.09867,3129.4,3129.2,0.79867]
[1644941060441,1.09867,3129.4,3129.2,4.27789602]
[1644941060641,1.09867,3129.4,3129.1,1.59733]
[1644941060642,2.69629,3129.4,3129.1,1.59733]
[1644941061243,2.69629,3129.4,3129.1,2.59733]
[1644941061644,1.89762,3129.4,3129.1,2.59733]
[1644941061896,1.45747636,3129.5,3129.2,1.0]
[1644941062082,1.4551086,3129.5,3129.2,2.0]
[1644941062285,1.4551086,3129.5,3129.3,0.462]
[1644941062482,1.4551086,3129.5,3129.3,1.26057]
[1644941062483,0.00236776,3129.4,3129.3,1.26057]
[1644941062688,0.80100776,3129.4,3129.3,0.462]
[1644941063284,0.79864,3129.4,3129.3,0.462]
[1644941063484,1.09864,3129.4,3129.3,0.462]
[1644941064685,1.09864,3129.4,3129.2,1.79866]
[1644941064883,1.10241312,3129.4,3129.2,1.79866]
[1644941065288,1.10241312,3129.4,3129.2,1.5893814]
[1644941065935,1.10241312,3129.4,3129.2,0.7907214]
[1644941066333,1.10241312,3129.4,3129.1,1.59733]
[1644941066534,1.59783,3129.3,3128.7,1.0]
[1644941066733,0.799,3129.0,3128.6,0.79898]
[1644941066939,0.00377312,3128.9,3128.6,0.79898]
[1644941067633,2.40067312,3128.9,3128.6,0.79898]
[1644941067836,0.3,3128.8,3128.6,0.79898]
[1644941068634,0.3,3128.8,3128.6,1.79898]
[1644941068835,1.46547717,3128.8,3128.6,1.79898]
[1644941069034,1.46547717,3128.8,3128.1,0.462]
[1644941069035,2.39706,3128.7,3128.4,0.79903]
[1644941069237,0.3,3128.6,3128.4,0.79903]
[1644941070689,1.09893,3128.6,3128.4,0.79903]
[1644941073242,1.09893,3128.6,3128.5,1.0]
[1644941073437,1.09893,3128.6,3128.3,1.59795]
[1644941073438,4.89632203,3128.6,3128.3,1.59795]
[1644941073641,0.00377312,3128.5,3128.3,1.59795]
[1644941073839,0.00377312,3128.5,3128.1,1.0]
[1644941074038,0.00377312,3128.5,3128.0,1.59812]
[1644941074440,0.89891428,3128.1,3128.0,1.59812]
[1644941074641,1.19891428,3128.1,3127.7,1.0]
[1644941074838,4.05696695,3128.1,3127.8,0.79919]
[1644941075038,0.60377312,3128.1,3127.8,0.79919]
[1644941075643,3.50051312,3128.1,3127.8,0.79919]
[1644941076741,0.79911,3128.0,3127.8,0.79919]
[1644941078294,1.60217312,3128.1,3127.9,0.462]
[1644941078295,0.00377312,3128.1,3127.9,0.462]
[1644941078489,0.79875,3128.5,3127.9,0.462]
[1644941078490,0.79875,3128.5,3128.0,0.79874]
[1644941078688,0.25236708,3129.0,3128.1,0.462]
[1644941078888,2.3964,3129.0,3128.1,0.462]
[1644941079088,1.59748,3128.9,3128.5,2.3964]
[1644941079288,0.79872,3128.7,3128.6,1.0]
[1644941079692,2.39618,3128.7,3128.6,2.5976]
[1644941080840,2.69618,3128.7,3128.6,2.5976]
[1644941082634,2.69618,3128.7,3128.5,3.3964]
[1644941082635,0.3,3128.6,3128.5,3.3964]
[1644941083334,0.3,3128.6,3128.5,2.3964]
[1644941084388,0.3,3128.6,3128.5,3.3964]
[1644941084792,0.3,3128.6,3128.4,1.79898]
[1644941084990,4.29504,3128.6,3128.4,1.79898]
[1644941085193,1.00165267,3128.5,3128.4,1.79898]
[1644941085390,1.00165267,3128.5,3127.7,2.85883]
[1644941085391,2.10076267,3128.5,3128.2,1.5981]
[1644941085591,1.09911,3128.5,3128.2,1.5981]
[1644941085993,1.09911,3128.5,3128.0,1.0]
[1644941086197,3.49644,3128.5,3128.0,1.0]
[1644941086594,3.19644,3128.5,3128.0,1.0]
[1644941086994,3.19644,3128.5,3128.2,1.5981]
[1644941087594,1.59816,3128.3,3128.2,1.5981]
[1644941087795,1.59816,3128.3,3128.0,1.0]
[1644941087994,0.3,3128.2,3128.0,1.0]
[1644941088238,1.89814,3128.2,3128.0,1.0]
[1644941088436,1.89814,3128.2,3127.9,1.0]
[1644941088437,0.98834408,3128.1,3127.9,1.0]
[1644941088636,2.58656408,3128.1,3127.9,1.0]
[1644941088843,3.38568408,3128.1,3127.5,2.39724]
[1644941089037,0.3,3128.0,3127.6,0.79912]
[1644941089636,0.3,3128.0,3127.6,1.79912]
[1644941089839,0.79907,3127.9,3127.6,1.79912]
[1644941090037,0.79907,3127.9,3127.7,1.0]
[1644941090238,0.79907,3127.9,3127.7,1.79913]
[1644941090438,0.79907,3127.9,3127.7,2.79913]
[1644941090838,0.79907,3127.9,3127.7,1.79913]
[1644941091238,1.59816,3127.9,3127.7,1.79913]
[1644941091638,0.3,3127.8,3127.7,1.79913]
[1644941094385,1.59816,3127.9,3127.7,2.79913]
[1644941094586,0.94970032,3127.9,3127.7,4.31173]
[1644941094787,0.00375425,3128.0,3127.7,4.31173]
[1644941094788,0.00375425,3128.0,3127.9,0.28988077]
[1644941094986,1.59755,3128.3,3127.9,0.75188077]
[1644941095186,1.59755,3128.3,3127.9,1.53524499]
[1644941095389,6.39374697,3129.0,3127.9,3.53524499]
[1644941095639,6.39374697,3129.0,3128.2,3.39633]
[1644941095835,0.79878,3128.8,3128.4,1.79878]
[1644941096035,0.79878,3128.8,3128.5,0.462]
[1644941096237,1.09878,3128.8,3128.5,2.05954]
[1644941096438,1.09878,3128.8,3128.5,3.05954]
[1644941096836,2.39643,3128.7,3128.6,0.79877]
[1644941097036,2.39643,3128.7,3128.5,3.05954]
[1644941097838,2.39643,3128.7,3128.6,1.0]
[1644941098338,2.39643,3128.7,3128.6,2.0]
[1644941099688,2.69643,3128.7,3128.6,2.0]
[1644941099889,2.69643,3128.7,3128.6,1.642013]
[1644941100089,2.69643,3128.7,3128.6,1.0]
[1644941100293,2.69643,3128.7,3128.5,3.05954]
[1644941100589,2.69643,3128.7,3128.6,1.0]
[1644941101593,2.69643,3128.7,3128.6,1.462]
[1644941101795,2.69643,3128.7,3128.6,2.462]
[1644941101991,2.69643,3128.7,3128.6,1.0]
[1644941102393,0.3,3128.6,3128.5,2.59754]
[1644941102795,2.39643,3128.7,3128.5,2.59754]
[1644941104036,2.39643,3128.7,3128.6,0.462]
[1644941104438,2.39643,3128.7,3128.6,1.462]
[1644941104835,2.39643,3128.7,3128.6,2.462]
[1644941105839,0.7988,3128.7,3128.6,2.462]
[1644941106238,1.59755,3128.9,3128.6,2.462]
[1644941106436,1.59755,3128.9,3128.7,0.79862]
[1644941106638,1.59755,3128.9,3128.8,0.462]
[1644941106890,0.79879,3128.9,3128.8,1.462]
[1644941107288,0.79879,3128.9,3128.8,2.462]
[1644941107688,0.79879,3128.9,3128.8,1.462]
[1644941107888,0.79879,3128.9,3128.8,2.462]
[1644941108688,0.79879,3128.9,3128.8,1.462]
[1644941108890,0.79879,3128.9,3128.8,2.462]
[1644941109088,0.79879,3128.9,3128.8,1.462]
[1644941109290,0.79879,3128.9,3128.8,2.462]
[1644941109489,0.79879,3128.9,3128.8,1.462]
[1644941109696,0.79879,3128.9,3128.8,2.462]
[1644941109893,0.79879,3128.9,3128.8,1.462]
[1644941110095,0.79879,3128.9,3128.8,2.462]
[1644941110297,1.09949663,3128.8,3128.3,1.0]
[1644941110494,1.09949663,3128.8,3127.9,0.999013]
[1644941110495,0.79892,3128.5,3127.9,0.999013]
[1644941110763,0.79892,3128.5,3127.4,0.12409808]
[1644941110764,0.01260689,3128.0,3127.4,0.00249808]
[1644941110948,6.85,3127.8,3126.7,0.79948]
[1644941111153,0.01268876,3127.3,3126.3,1.20225566]
[1644941111349,1.95915697,3127.2,3126.0,0.7989]
[1644941111546,1.95915697,3127.2,3125.3,1.98371616]
[1644941111547,0.4083,3126.3,3125.3,1.98371616]
[1644941111749,24.594,3125.9,3125.5,1.20344206]
[1644941111947,24.594,3125.9,3124.2,0.22016769]
[1644941111948,6.85,3125.8,3124.2,0.22016769]
[1644941112150,0.2223,3125.1,3124.8,1.20410013]
[1644941112451,0.2223,3125.1,3124.2,0.22016769]
[1644941112452,0.79997,3125.0,3124.2,7.20388385]
[1644941112647,0.4647674,3125.0,3124.5,1.98371616]
[1644941112848,0.4647674,3125.0,3124.5,0.22016769]
[1644941113148,0.4647674,3125.0,3124.8,0.00179078]
[1644941113447,0.4647674,3125.0,3124.8,0.80161078]
[1644941113649,0.4647674,3125.0,3124.9,1.20017859]
[1644941113948,0.80001,3125.1,3124.9,0.462]
[1644941113949,0.5056729,3125.1,3124.9,0.462]
[1644941114151,4.7976,3125.8,3124.9,0.762]
[1644941114152,2.39877,3125.8,3124.9,0.762]
[1644941114415,2.39877,3125.8,3125.3,1.19966525]
[1644941114609,0.79943,3125.5,3125.3,2.06105]
[1644941115411,0.79943,3125.5,3124.1,2.21657278]
[1644941115412,1.13502569,3125.2,3124.5,1.19966525]
[1644941115610,1.13502569,3125.2,3124.2,1.19966525]
[1644941115611,0.79996,3125.0,3124.2,1.19966525]
[1644941115909,0.79996,3125.0,3123.2,0.462]
[1644941115910,1.42778664,3124.6,3123.2,0.462]
[1644941116111,1.42778664,3124.6,3123.7,1.07639994]
[1644941116808,0.80008,3124.5,3123.8,1.60003]
[1644941117210,0.80008,3124.5,3123.9,3.37070815]
[1644941117409,0.80008,3124.5,3124.0,1.26181]
[1644941117610,0.80008,3124.5,3124.1,3.37901234]
[1644941117812,0.80008,3124.5,3124.1,3.41602167]
[1644941118008,0.80008,3124.5,3124.2,2.59959]
[1644941118239,1.59975,3124.4,3124.3,3.47082407]
[1644941118438,1.59975,3124.4,3124.2,1.59959]
[1644941118644,1.59975,3124.4,3124.3,0.7998]
[1644941119047,1.59975,3124.4,3123.7,0.27639994]
[1644941119244,0.80006,3124.1,3123.6,0.462]
[1644941119441,1.60016,3124.1,3123.6,0.462]
[1644941120041,1.60016,3124.1,3122.9,3.64416058]
[1644941120252,0.80022,3123.8,3122.9,0.00456915]
[1644941120448,3.50052,3124.1,3122.9,0.00456915]
[1644941120449,0.80026,3123.6,3122.9,0.00456915]
[1644941120641,0.80026,3123.6,3122.9,0.80486915]
[1644941120642,1.93735599,3123.6,3122.9,0.80486915]
[1644941121242,0.98288359,3123.1,3122.9,0.80486915]
[1644941121542,0.80028,3123.2,3122.9,0.00456915]
[1644941121742,0.80028,3123.2,3122.9,0.80484915]
[1644941122595,0.48868824,3123.2,3122.9,0.80484915]
[1644941122797,0.8003,3123.1,3123.0,3.35733695]
[1644941122999,0.8003,3123.1,3122.9,0.80484915]
[1644941123398,0.8003,3123.1,3123.0,0.462]
[1644941125842,0.8003,3123.1,3122.7,0.00456915]
[1644941126042,0.8003,3123.1,3122.8,0.462]
[1644941126043,3.20117,3123.1,3122.8,0.462]
[1644941126246,3.20117,3123.1,3122.7,0.00456915]
[1644941126247,1.33438755,3123.0,3122.7,0.00456915]
[1644941126447,1.33438755,3123.0,3122.6,1.54446788]
[1644941126448,5.20036,3122.9,3122.6,1.54446788]
[1644941126644,5.20036,3122.9,3122.2,0.7993]
[1644941126645,0.80052,3122.8,3122.2,0.7993]
[1644941126845,1.18316438,3122.3,3122.2,0.7993]
[1644941127444,1.60093,3122.5,3122.2,0.7993]
[1644941127646,1.90093,3122.5,3122.2,0.7993]
[1644941127847,3.50186,3122.5,3122.2,0.7993]
[1644941128051,3.50186,3122.5,3122.1,3.01541902]
[1644941128052,0.80047,3122.4,3122.1,3.01541902]
[1644941128249,0.80047,3122.4,3122.2,0.80043]
[1644941128747,0.80047,3122.4,3122.2,1.80043]
[1644941129511,1.6008,3122.4,3122.2,1.80043]
[1644941130112,1.6008,3122.4,3122.2,0.80043]
[1644941131314,2.69292368,3122.4,3122.2,0.80043]
[1644941131917,1.6008,3122.4,3122.2,0.80043]
[1644941133237,1.6008,3122.4,3122.1,1.60359746]
[1644941133442,0.91795467,3122.3,3122.1,1.60359746]
[1644941134138,0.91795467,3122.3,3122.2,0.80043]
[1644941134843,1.6008,3122.4,3122.2,4.21360204]
[1644941135040,1.6008,3122.4,3122.3,3.92404869]
[1644941135239,1.6008,3122.4,3122.3,5.30804869]
[1644941136044,1.6008,3122.4,3122.3,1.7365289]
[1644941136242,1.6008,3122.4,3122.3,0.7365289]
[1644941137496,3.20186,3122.5,3122.3,0.7365289]
[1644941137694,3.20186,3122.5,3122.3,4.49803583]
[1644941137892,2.4008,3123.0,3122.3,1.0365289]
[1644941138093,2.4008,3123.0,3122.5,0.80015]
[1644941138292,3.2006,3122.8,3122.6,0.384]
[1644941138797,3.13616911,3122.8,3122.6,0.384]
[1644941138993,3.45075,3123.7,3122.6,19.204]
[1644941139193,3.20075,3123.7,3122.9,0.8]
[1644941139391,3.20075,3123.7,3123.0,0.384]
[1644941139692,0.8,3123.5,3123.0,0.384]
[1644941139892,0.8,3123.5,3123.1,3.35964519]
[1644941140094,0.8,3123.5,3123.2,0.384]
[1644941140292,0.8,3123.5,3123.2,1.384]
[1644941140491,0.8,3123.5,3123.2,0.384]
[1644941140946,0.8,3123.5,3123.2,1.18407]
[1644941141349,0.80007,3123.3,3123.2,1.18407]
[1644941141744,0.80007,3123.3,3123.2,1.18680381]
[1644941142544,0.48004901,3123.3,3123.2,1.18680381]
[1644941142745,0.48004901,3123.3,3123.1,1.60014]
[1644941142946,0.48004901,3123.3,3123.1,1.60287387]
[1644941142947,2.08069901,3123.3,3123.1,1.60287387]
[1644941143146,1.60065,3123.3,3123.1,0.00273387]
[1644941143346,1.60065,3123.3,3122.8,1.60065]
[1644941143347,1.90044934,3123.1,3122.8,1.60065]
[1644941143746,0.80033,3123.1,3122.8,1.60065]
[1644941144994,1.1880821,3123.0,3122.9,0.8003]
[1644941145194,1.1880821,3123.0,3122.3,0.3525289]
[1644941145396,2.40102,3122.9,3122.3,0.3525289]
[1644941145595,2.40102,3122.9,3122.3,3.72105761]
[1644941145795,2.40102,3122.9,3122.3,5.32177761]
[1644941145994,2.40102,3122.9,3122.4,1.80036]
[1644941146599,0.80034,3122.8,3122.4,1.80309429]
[1644941146796,1.60058,3122.8,3122.4,1.80309429]
[1644941146995,1.60057,3122.7,3122.4,1.80309429]
[1644941147695,1.60057,3122.7,3122.4,0.80036]
[1644941147899,2.40088,3122.7,3122.4,0.80284332]
[1644941148344,2.40088,3122.7,3122.4,1.80284332]
[1644941148746,2.40088,3122.7,3122.4,1.80036]
[1644941148944,2.40088,3122.7,3122.4,1.80284332]
[1644941149942,2.40088,3122.7,3122.4,1.80036]
[1644941150144,2.40088,3122.7,3122.4,1.80284332]
[1644941150343,0.90335848,3122.5,3122.4,0.80284332]
[1644941150745,2.40088,3122.7,3122.4,0.80284332]
[1644941151147,13.00358,3123.9,3122.8,1.1204003]
[1644941151148,3.0237,3123.7,3122.8,1.1204003]
[1644941151344,5.0,3123.9,3122.8,1.1204003]
[1644941151345,0.80038,3123.6,3123.0,0.80039]
[1644941151747,1.19097106,3123.5,3123.0,0.6]
[1644941151991,1.19097106,3123.5,3123.0,0.3]
[1644941152192,1.19097106,3123.5,3122.8,1.4204003]
[1644941152391,1.19097106,3123.5,3122.8,1.7204003]
[1644941152592,1.19097106,3123.5,3123.1,0.80035]
[1644941152792,1.19097106,3123.5,3123.2,0.3]
[1644941153193,0.80029,3123.9,3123.1,0.8602]
[1644941153398,1.0,3124.2,3123.2,0.3]
[1644941153593,3.86354016,3124.3,3123.3,0.80029]
[1644941153594,1.12173016,3124.3,3123.3,0.80029]
[1644941153793,1.12173016,3124.3,3123.3,0.6]
[1644941153997,1.12173016,3124.3,3123.3,0.3]
[1644941154195,1.18777853,3124.3,3123.3,0.3]
[1644941154396,1.18777853,3124.3,3123.2,2.20048]
[1644941154594,1.18777853,3124.3,3123.6,0.80011]
[1644941154794,11.7907,3124.6,3123.6,0.80011]
[1644941154795,3.5241,3124.6,3123.6,0.80011]
[1644941154995,3.5241,3124.6,3123.6,0.6]
[1644941154996,0.00956117,3124.6,3123.6,0.6]
[1644941155496,0.00956117,3124.6,3123.5,0.6]
[1644941155743,54.64067918,3124.6,3123.5,0.6]
[1644941155939,0.85930502,3124.4,3123.5,0.6]
[1644941156139,0.85930502,3124.4,3123.5,0.3]
[1644941156339,53.83101801,3124.6,3123.4,3.0]
[1644941156640,1.17478507,3124.1,3123.4,3.0]
[1644941156839,0.80023,3124.0,3123.4,3.0]
[1644941157639,0.80023,3124.0,3123.7,0.80021]
[1644941157842,4.54272082,3123.9,3123.1,1.60057]
[1644941158043,4.54272082,3123.9,3122.9,0.00274]
[1644941158044,0.01267164,3123.7,3122.9,0.00274]
[1644941158241,19.62048,3123.6,3122.9,0.00274]
[1644941158440,19.62048,3123.6,3122.5,3.5]
[1644941158441,0.95317363,3123.0,3122.5,3.5]
[1644941158642,0.95317363,3123.0,3122.6,0.80045]
[1644941158940,3.5,3123.5,3122.6,0.80045]
[1644941159139,0.80041,3123.3,3122.6,0.80045]
[1644941159388,1.0,3123.5,3122.3,0.3525289]
[1644941159696,5.00593152,3123.7,3122.3,0.3525289]
[1644941159890,5.00593152,3123.7,3122.8,0.00274212]
[1644941160094,1.04904175,3123.1,3122.8,0.00274212]
[1644941160890,1.04904175,3123.1,3122.3,0.3525289]
[1644941161091,1.04904175,3123.1,3122.8,0.00274212]
[1644941161892,1.04904175,3123.1,3122.3,0.6525289]
[1644941162199,1.04904175,3123.1,3122.8,0.00274212]
[1644941163245,3.39920886,3123.0,3122.3,0.6525289]
[1644941163546,1.04876391,3122.5,3122.3,0.66349901]
[1644941163749,3.92415878,3123.4,3122.3,0.66349901]
[1644941163945,1.0,3123.3,3122.3,0.66349901]
[1644941164446,1.0,3123.3,3122.3,0.6525289]
[1644941164646,1.0,3123.3,3122.6,0.00274221]
[1644941164647,1.04674964,3122.9,3122.6,0.00274221]
[1644941165247,0.80052,3123.5,3122.6,0.00274221]
[1644941165447,6.80042,3123.8,3122.6,0.00274221]
[1644941165448,1.12193152,3123.7,3122.6,0.00274221]
[1644941165649,1.12193152,3123.7,3122.3,0.6525289]
[1644941165848,2.12193152,3123.7,3122.6,0.00274225]
[1644941166349,1.02821169,3123.3,3122.6,0.00274225]
[1644941166749,1.02821169,3123.3,3122.3,0.6525289]
[1644941166994,1.02821169,3123.3,3122.8,0.00274212]
[1644941167994,1.02821169,3123.3,3122.3,0.6525289]
[1644941168194,1.02821169,3123.3,3122.9,0.00274205]
[1644941169197,1.02821169,3123.3,3122.3,0.6525289]
[1644941169398,1.02821169,3123.3,3122.9,0.00274202]
[1644941170402,1.02821169,3123.3,3122.3,0.6525289]
[1644941170642,1.17524633,3122.8,3122.5,0.01096972]
[1644941171445,0.80053,3122.9,3122.5,0.01096972]
[1644941171642,0.80053,3122.9,3122.3,0.6525289]
[1644941171841,0.80053,3122.9,3122.5,0.00274231]
[1644941172242,0.80048,3123.2,3122.5,0.00274231]
[1644941172440,1.78500916,3123.2,3122.5,0.00274231]
[1644941172842,1.78500916,3123.2,3122.3,0.6525289]
[1644941173046,1.78500916,3123.2,3122.7,0.00274218]
[1644941174045,1.78500916,3123.2,3122.4,0.3]
[1644941174244,1.78500916,3123.2,3122.8,0.00274212]
[1644941175094,1.78500916,3123.2,3122.4,0.3]
[1644941175497,1.78500916,3123.2,3122.8,0.00274208]
[1644941176396,1.78500916,3123.2,3122.4,0.3]
[1644941176597,0.80054,3123.1,3122.8,0.00274208]
[1644941177597,0.80054,3123.1,3122.4,0.3]
[1644941177801,1.11741962,3122.7,3122.4,0.3]
[1644941178249,0.80048,3123.2,3122.4,0.3]
[1644941178449,20.32593152,3123.7,3122.4,3.72574541]
[1644941178450,1.0,3123.5,3122.4,3.72574541]
[1644941178655,1.92809,3123.8,3122.4,3.73830475]
[1644941179049,1.1278,3123.8,3122.4,3.73830475]
[1644941179249,1.1278,3123.8,3122.6,0.00274221]
[1644941179450,0.83650587,3123.5,3122.6,0.00274221]
[1644941179852,0.83650587,3123.5,3122.6,0.80312221]
[1644941180053,0.83650587,3123.5,3122.8,0.5601844]
[1644941180254,0.83650587,3123.5,3122.9,0.00274205]
[1644941180656,0.83650587,3123.5,3122.9,0.30274205]
[1644941181056,0.83650587,3123.5,3122.9,1.10301205]
[1644941181256,0.80027,3123.8,3122.9,0.3]
[1644941181456,1.60058,3123.8,3122.9,0.30274204]
[1644941182091,1.59927416,3123.8,3122.9,0.30274204]
[1644941182292,0.94241774,3123.4,3122.9,0.3]
[1644941182490,1.74276774,3123.4,3122.9,0.3]
[1644941182690,1.74276774,3123.4,3122.9,0.30274208]
[1644941183290,1.60101,3123.3,3122.9,0.00274208]
[1644941183491,1.60101,3123.3,3122.8,0.3]
[1644941183693,0.86185502,3122.9,3122.5,0.3]
[1644941183892,0.86185502,3122.9,3122.5,0.01096969]
[1644941184692,0.80047,3123.1,3122.4,2.4610679]
[1644941184893,2.40129,3123.4,3122.6,0.80042]
[1644941185291,2.40129,3123.4,3122.6,1.40042]
[1644941185493,0.8004,3123.2,3122.6,1.40042]
[1644941186147,0.8004,3123.2,3122.7,0.00274215]
[1644941187146,0.8004,3123.2,3122.8,0.8004]
[1644941187348,0.8004,3123.2,3122.8,1.40314212]
[1644941188149,0.8004,3123.2,3122.8,0.60274212]
[1644941188351,0.8004,3123.2,3122.8,0.3]
[1644941188548,0.8004,3123.2,3122.4,2.4610679]
[1644941188748,0.8004,3123.2,3122.8,0.00274208]
[1644941188949,0.80044,3123.1,3122.8,0.00274208]
[1644941189593,0.80044,3123.1,3122.7,0.3]
[1644941189798,1.60082,3123.1,3122.8,0.00274212]
[1644941190195,1.60082,3123.1,3122.8,0.80314212]
[1644941190395,1.60082,3123.1,3122.8,1.36339452]
[1644941190795,1.60082,3123.1,3122.8,1.6606524]
[1644941190998,1.60082,3123.1,3122.8,1.66339452]
[1644941191896,1.60082,3123.1,3122.8,1.6606524]
[1644941192296,0.80038,3123.1,3122.8,1.66339452]
[1644941193246,0.80038,3123.1,3122.8,1.6606524]
[1644941193444,0.80038,3123.1,3122.8,1.66339452]
[1644941193654,1.60077,3123.1,3122.8,1.66339452]
[1644941194045,1.60077,3123.1,3122.8,1.10314212]
[1644941194445,1.60077,3123.1,3122.8,1.1004]
[1644941194645,1.60077,3123.1,3122.8,1.10314212]
[1644941195645,1.60077,3123.1,3122.8,1.1004]
[1644941196045,1.60077,3123.1,3122.8,0.30274212]
[1644941196745,1.60077,3123.1,3122.8,0.3]
[1644941196998,1.601,3123.0,3122.8,0.30274212]
[1644941198099,1.601,3123.0,3122.8,0.3]
[1644941198299,1.60102,3122.9,3122.7,2.20346215]
[1644941198500,1.60102,3122.9,3122.7,0.60274215]
[1644941198703,2.40149,3122.9,3122.7,0.60274215]
[1644941198903,1.03544874,3123.3,3122.7,0.30274215]
[1644941199101,0.80037,3122.9,3122.7,0.30274215]
[1644941199300,0.80037,3122.9,3122.4,0.6]
[1644941199502,0.80037,3122.9,3122.6,0.00274221]
[1644941199903,0.80037,3122.9,3122.6,1.60356221]
[1644941200101,0.80037,3122.9,3122.6,1.90356221]
[1644941200300,0.80037,3122.9,3122.6,2.20356221]
[1644941200500,0.80037,3122.9,3122.6,2.20082]
[1644941200756,0.80037,3122.9,3122.6,2.20356225]
[1644941201557,0.80037,3122.9,3122.6,2.20082]
[1644941201954,0.80037,3122.9,3122.7,0.8004]
[1644941202957,0.79887928,3122.9,3122.7,0.8004]
[1644941203557,0.79887928,3122.9,3122.7,1.3606842]
[1644941203756,0.79887928,3122.9,3122.7,0.8004]
[1644941205898,0.79887928,3122.9,3122.7,1.3607]
[1644941206704,0.79887928,3122.9,3122.7,0.8004]
[1644941208547,1.59937928,3122.9,3122.7,0.8004]
[1644941209147,2.67469453,3122.9,3122.7,0.8004]